fUST/lending_fUST_20250531
["ID","MTS","AMOUNT","RATE_DAILY","PERIOD"]
[363330877,1748679039154,-430.0,0.00017534,2]
[363330878,1748679039163,-430.0,0.00017534,2]
[363330879,1748679039172,-1564.91,0.00017534,2]
[363330880,1748679039181,-2601.47,0.00017534,2]
[363330881,1748679039191,-1723.15,0.00017534,2]
[363330882,1748679039200,-430.0,0.00017534,2]
[363330883,1748679039209,-430.0,0.00017534,2]
[363330884,1748679039218,-703.17,0.00017534,2]
[363330885,1748679039227,-430.0,0.00017534,2]
[363330886,1748679039236,-430.0,0.00017534,2]
[363330887,1748679039246,-549.63,0.00017534,2]
[363330888,1748679039255,-430.0,0.00017534,2]
[363330889,1748679039265,-430.0,0.00017534,2]
[363330890,1748679039274,-430.0,0.00017534,2]
[363330891,1748679039283,-430.0,0.00017534,2]
[363330892,1748679039292,-430.0,0.00017534,2]
[363330893,1748679039302,-611.17,0.00017534,2]
[363330894,1748679039310,-430.0,0.00017534,2]
[363330895,1748679039319,-430.0,0.00017534,2]
[363330896,1748679039328,-569.4,0.00017534,2]
[363330897,1748679039339,-943.81,0.00017534,2]
[363330898,1748679039349,-430.0,0.00017534,2]
[363330899,1748679039360,-430.0,0.00017534,2]
[363330900,1748679039370,-430.0,0.00017534,2]
[363330901,1748679039380,-430.0,0.00017534,2]
[363330902,1748679039396,-430.0,0.00017534,2]
[363330903,1748679039406,-430.0,0.00017534,2]
[363330904,1748679039416,-430.0,0.00017534,2]
[363330905,1748679039425,-430.0,0.00017534,2]
[363330906,1748679039435,-665.76,0.00017534,2]
[363330907,1748679039444,-766.35,0.00017534,2]
[363330908,1748679039453,-550.08686581,0.00017534,2]
[363330909,1748679039465,-430.0,0.00017534,2]
[363330910,1748679039476,-430.0,0.00017534,2]
[363330911,1748679039485,-450.97,0.00017534,2]
[363330912,1748679039495,-430.0,0.00017534,2]
[363330913,1748679039505,-1196.33,0.00017534,2]
[363330914,1748679039515,-430.0,0.00017534,2]
[363330915,1748679039524,-293.51702833,0.00017534,2]
[363330916,1748679039535,-430.0,0.00017534,2]
[363330917,1748679039546,-430.0,0.00017534,2]
[363330918,1748679039556,-3551.36,0.00017534,2]
[363330919,1748679039566,-500.0,0.00017541,2]
[363330920,1748679039577,-502.96950655,0.00017541,2]
[363330921,1748679039588,-500.0,0.00017541,2]
[363330922,1748679039598,-500.0,0.00017541,2]
[363330923,1748679039607,-500.0,0.00017616,2]
[363330924,1748679039618,-500.0,0.00017616,2]
[363330925,1748679039627,-500.0,0.00017616,2]
[363330926,1748679039636,-500.0,0.00017616,2]
[363330927,1748679039646,-500.0,0.00017616,2]
[363330928,1748679039656,-1000.0,0.00017674,2]
[363330929,1748679039666,-366.48276956,0.00017713,2]
[363330930,1748679039675,-588.50354762,0.00017713,2]
[363330931,1748679039685,-1000.0,0.00017767,2]
[363330932,1748679039695,-2168.9262107,0.00017776,2]
[363330933,1748679039704,-1000.0,0.00017776,2]
[363330934,1748679039714,-160.0,0.00017807,2]
[363330935,1748679039723,-685.27,0.00017807,2]
[363330936,1748679039732,-430.0,0.00017807,2]
[363330937,1748679039742,-890.96,0.00017807,2]
[363330938,1748679039751,-430.0,0.00017807,2]
[363330939,1748679039760,-819.81,0.00017807,2]
[363330940,1748679039770,-2802.87,0.00017807,2]
[363330941,1748679039780,-968.67,0.00017807,2]
[363330942,1748679039789,-430.0,0.00017808,2]
[363330943,1748679039799,-322.65519947,0.00017808,2]
[363330944,1748679039808,-430.0,0.00017808,2]
[363330945,1748679039817,-349.49,0.00017808,2]
[363330946,1748679039826,-430.0,0.00017808,2]
[363330947,1748679039836,-430.0,0.00017808,2]
[363330948,1748679039845,-430.0,0.00017808,2]
[363330949,1748679039856,-584.55,0.00017808,2]
[363330950,1748679039867,-430.0,0.00017808,2]
[363330951,1748679039875,-430.0,0.00017808,2]
[363330952,1748679039883,-430.0,0.00017808,2]
[363330953,1748679039893,-430.0,0.00017808,2]
[363330954,1748679039902,-430.0,0.00017808,2]
[363330955,1748679039911,-430.0,0.00017808,2]
[363330956,1748679039920,-430.0,0.00017808,2]
[363330957,1748679039930,-430.0,0.00017808,2]
[363330958,1748679039939,-430.0,0.00017808,2]
[363330959,1748679039949,-482.78,0.00017808,2]
[363330961,1748679039958,-430.0,0.00017808,2]
[363330963,1748679039967,-430.0,0.00017808,2]
[363330964,1748679039977,-1777.4,0.00017808,2]
[363330965,1748679039986,-430.0,0.00017808,2]
[363330966,1748679039995,-210.43100939,0.00017808,2]
[363330967,1748679040004,-430.0,0.00017808,2]
[363330968,1748679040014,-430.0,0.00017808,2]
[363330969,1748679040023,-430.0,0.00017808,2]
[363330970,1748679040033,-1228.74,0.00017808,2]
[363330971,1748679040042,-1053.6,0.00017808,2]
[363330972,1748679040051,-430.0,0.00017808,2]
[363330973,1748679040061,-430.0,0.00017808,2]
[363330974,1748679040070,-430.0,0.00017808,2]
[363330975,1748679040079,-1564.91,0.00017808,2]
[363330976,1748679040088,-2601.47,0.00017808,2]
[363330977,1748679040099,-1723.15,0.00017808,2]
[363330978,1748679040109,-430.0,0.00017808,2]
[363330979,1748679040118,-346.70844063,0.00017808,2]
[363330980,1748679040128,-703.17,0.00017808,2]
[363330981,1748679040137,-430.0,0.00017808,2]
[363330982,1748679040146,-430.0,0.00017808,2]
[363330983,1748679040155,-549.63,0.00017808,2]
[363330984,1748679040165,-211.71367879,0.00017808,2]
[363330985,1748679040174,-430.0,0.00017808,2]
[363330986,1748679040184,-430.0,0.00017808,2]
[363330987,1748679040194,-430.0,0.00017808,2]
[363330988,1748679040203,-430.0,0.00017808,2]
[363330989,1748679040214,-611.17,0.00017808,2]
[363330990,1748679040223,-943.81,0.00017808,2]
[363330991,1748679040232,-430.0,0.00017808,2]
[363330992,1748679040242,-430.0,0.00017808,2]
[363330993,1748679040251,-469.55745892,0.00017808,2]
[363330994,1748679040260,-430.0,0.00017808,2]
[363330995,1748679040270,-430.0,0.00017808,2]
[363330996,1748679040279,-430.0,0.00017808,2]
[363330997,1748679040288,-430.0,0.00017808,2]
[363330998,1748679040299,-430.0,0.00017808,2]
[363330999,1748679040309,-665.76,0.00017808,2]
[363331000,1748679040320,-766.35,0.00017808,2]
[363331001,1748679040330,-430.0,0.00017808,2]
[363331002,1748679040339,-430.0,0.00017808,2]
[363331003,1748679040348,-450.97,0.00017808,2]
[363331004,1748679040358,-457.86044503,0.00017808,2]
[363331005,1748679040368,-1196.33,0.00017808,2]
[363331006,1748679040378,-430.0,0.00017808,2]
[363331007,1748679040391,-430.0,0.00017808,2]
[363331008,1748679040407,-430.0,0.00017808,2]
[363331009,1748679040416,-3551.36,0.00017808,2]
[363331010,1748679040426,-1000.0,0.00017825,2]
[363331011,1748679040437,-504.82481693,0.00017838,2]
[363331012,1748679040447,-1000.0,0.00017838,2]
[363331013,1748679040456,-416.0,0.00017962,2]
[363331014,1748679040467,-250.0,0.00018,30]
[363331015,1748679040477,-3061.8488444,0.00018003,2]
[363331016,1748679040486,-1000.0,0.00018072,7]
[363331017,1748679040496,-1000.0,0.00018072,2]
[363331018,1748679040506,-1000.0,0.00018072,7]
[363331019,1748679040516,-1000.0,0.00018072,2]
[363331020,1748679040525,-1000.0,0.00018072,7]
[363331021,1748679040535,-1000.0,0.00018072,2]
[363331022,1748679040544,-1000.0,0.00018072,7]
[363331023,1748679040554,-1000.0,0.00018072,2]
[363331024,1748679040563,-1000.0,0.00018072,7]
[363331025,1748679040573,-1000.0,0.00018072,2]
[363331026,1748679040583,-1000.0,0.00018072,7]
[363331027,1748679040592,-1000.0,0.00018072,2]
[363331028,1748679040602,-1000.0,0.00018072,7]
[363331029,1748679040613,-1000.0,0.00018072,2]
[363331030,1748679040622,-1000.0,0.00018072,7]
[363331031,1748679040632,-1000.0,0.00018072,2]
[363331032,1748679040642,-1000.0,0.00018072,7]
[363331033,1748679040651,-1000.0,0.00018072,2]
[363331034,1748679040661,-1000.0,0.00018072,7]
[363331035,1748679040670,-212.77096907,0.00018072,7]
[363331036,1748679040680,-12664.98044988,0.00018072,7]
[363331037,1748679040690,-842.5625,0.00018072,7]
[363331038,1748679040699,-314.84782018,0.00018072,7]
[363331039,1748679040708,-342.68,0.00018072,3]
[363331040,1748679040718,-2923.1,0.00018081,2]
[363331041,1748679040727,-2923.1,0.00018081,2]
[363331042,1748679040737,-2923.1,0.00018081,2]
[363331043,1748679040746,-2923.1,0.00018081,2]
[363331044,1748679040755,-685.27,0.00018081,2]
[363331045,1748679040766,-430.0,0.00018081,2]
[363331046,1748679040775,-890.96,0.00018081,2]
[363331047,1748679040785,-430.0,0.00018081,2]
[363331048,1748679040794,-819.81,0.00018081,2]
[363331049,1748679040804,-2802.87,0.00018081,2]
[363331050,1748679040813,-968.67,0.00018081,2]
[363331051,1748679040823,-430.0,0.00018082,2]
[363331052,1748679040832,-430.0,0.00018082,2]
[363331053,1748679040841,-430.0,0.00018082,2]
[363331054,1748679040850,-584.55,0.00018082,2]
[363331055,1748679040860,-430.0,0.00018082,2]
[363331056,1748679040870,-430.0,0.00018082,2]
[363331057,1748679040880,-430.0,0.00018082,2]
[363331058,1748679040892,-430.0,0.00018082,2]
[363331059,1748679040902,-430.0,0.00018082,2]
[363331060,1748679040912,-430.0,0.00018082,2]
[363331061,1748679040922,-430.0,0.00018082,2]
[363331062,1748679040931,-430.0,0.00018082,2]
[363331063,1748679040941,-482.78,0.00018082,2]
[363331064,1748679040951,-430.0,0.00018082,2]
[363331065,1748679040960,-430.0,0.00018082,2]
[363331066,1748679040970,-1777.4,0.00018082,2]
[363331067,1748679040980,-430.0,0.00018082,2]
[363331068,1748679040990,-430.0,0.00018082,2]
[363331069,1748679040999,-430.0,0.00018082,2]
[363331070,1748679041009,-1228.74,0.00018082,2]
[363331071,1748679041018,-1053.6,0.00018082,2]
[363331072,1748679041028,-430.0,0.00018082,2]
[363331073,1748679041038,-430.0,0.00018082,2]
[363331074,1748679041047,-1564.91,0.00018082,2]
[363331075,1748679041056,-2601.47,0.00018082,2]
[363331076,1748679041066,-1723.15,0.00018082,2]
[363331077,1748679041075,-703.17,0.00018082,2]
[363331078,1748679041084,-236.15897535,0.00018082,2]
[363331079,1748679041094,-549.63,0.00018082,2]
[363331080,1748679041104,-430.0,0.00018082,2]
[363331081,1748679041115,-430.0,0.00018082,2]
[363331082,1748679041124,-430.0,0.00018082,2]
[363331083,1748679041133,-430.0,0.00018082,2]
[363331084,1748679041142,-611.17,0.00018082,2]
[363331085,1748679041152,-943.81,0.00018082,2]
[363331086,1748679041161,-334.91473207,0.00018082,2]
[363331087,1748679041171,-430.0,0.00018082,2]
[363331088,1748679041182,-541.1236136,0.00018082,2]
[363331089,1748679041191,-435.00917691,0.00018082,2]
[363331090,1748679041200,-430.0,0.00018082,2]
[363331091,1748679041210,-520.00032308,0.00018082,2]
[363331092,1748679041219,-430.0,0.00018082,2]
[363331093,1748679041228,-665.76,0.00018082,2]
[363331094,1748679041238,-766.35,0.00018082,2]
[363331095,1748679041247,-430.0,0.00018082,2]
[363331096,1748679041256,-430.0,0.00018082,2]
[363331097,1748679041265,-450.97,0.00018082,2]
[363331098,1748679041275,-1196.33,0.00018082,2]
[363331099,1748679041284,-430.0,0.00018082,2]
[363331100,1748679041293,-430.0,0.00018082,2]
[363331101,1748679041302,-3551.36,0.00018082,2]
[363331102,1748679041312,-262.74555424,0.00018104,2]
[363331103,1748679041321,-900.0,0.00018164,2]
[363331104,1748679041331,-952.25893078,0.00018164,2]
[363331105,1748679041340,-1000.0,0.00018164,2]
[363331106,1748679041351,-1000.0,0.00018164,2]
[363331107,1748679041361,-502.26110878,0.00018164,2]
[363331108,1748679041373,-264.48513609,0.00018164,2]
[363331109,1748679041384,-3061.8488444,0.00018279,2]
[363331110,1748679041396,-685.27,0.00018355,2]
[363331111,1748679041406,-430.0,0.00018355,2]
[363331112,1748679041416,-890.96,0.00018355,2]
[363331113,1748679041539,-430.0,0.00018355,2]
[363331114,1748679041550,-819.81,0.00018355,2]
[363331115,1748679041559,-2802.87,0.00018355,2]
[363331116,1748679041569,-968.67,0.00018355,2]
[363331117,1748679041579,-430.0,0.00018356,2]
[363331118,1748679041589,-430.0,0.00018356,2]
[363331119,1748679041600,-430.0,0.00018356,2]
[363331120,1748679041610,-584.55,0.00018356,2]
[363331121,1748679041626,-430.0,0.00018356,2]
[363331122,1748679041637,-162.97156676,0.00018356,2]
[363331123,1748679041648,-478.96068556,0.00018356,2]
[363331124,1748679041658,-430.0,0.00018356,2]
[363331125,1748679041668,-430.0,0.00018356,2]
[363331126,1748679041678,-430.0,0.00018356,2]
[363331127,1748679041688,-430.0,0.00018356,2]
[363331128,1748679041699,-430.0,0.00018356,2]
[363331129,1748679041709,-482.78,0.00018356,2]
[363331130,1748679041719,-430.0,0.00018356,2]
[363331131,1748679041729,-430.0,0.00018356,2]
[363331132,1748679041739,-1777.4,0.00018356,2]
[363331133,1748679041749,-430.0,0.00018356,2]
[363331134,1748679041758,-430.0,0.00018356,2]
[363331135,1748679041768,-1228.74,0.00018356,2]
[363331136,1748679041777,-1053.6,0.00018356,2]
[363331137,1748679041787,-405.74558301,0.00018356,2]
[363331138,1748679041797,-430.0,0.00018356,2]
[363331139,1748679041806,-1564.91,0.00018356,2]
[363331140,1748679041816,-2601.47,0.00018356,2]
[363331141,1748679041826,-1723.15,0.00018356,2]
[363331142,1748679041835,-703.17,0.00018356,2]
[363331143,1748679041844,-549.63,0.00018356,2]
[363331144,1748679041854,-430.0,0.00018356,2]
[363331145,1748679041867,-430.0,0.00018356,2]
[363331146,1748679041877,-430.0,0.00018356,2]
[363331147,1748679041887,-430.0,0.00018356,2]
[363331148,1748679041896,-611.17,0.00018356,2]
[363331149,1748679041905,-943.81,0.00018356,2]
[363331150,1748679041915,-430.0,0.00018356,2]
[363331151,1748679041925,-430.0,0.00018356,2]
[363331152,1748679041934,-665.76,0.00018356,2]
[363331153,1748679041944,-766.35,0.00018356,2]
[363331154,1748679041953,-430.0,0.00018356,2]
[363331155,1748679041962,-331.6012484,0.00018356,2]
[363331156,1748679041972,-450.97,0.00018356,2]
[363331157,1748679041981,-1196.33,0.00018356,2]
[363331158,1748679041991,-430.0,0.00018356,2]
[363331159,1748679042000,-430.0,0.00018356,2]
[363331160,1748679042009,-3551.36,0.00018356,2]
[363331161,1748679042019,-1026.43913799,0.00018386,2]
[363331162,1748679042028,-587.0,0.0001845,2]
[363331163,1748679042038,-3061.8488444,0.00018555,2]
[363331164,1748679042047,-234.90820894,0.00018589,2]
[363331165,1748679042058,-685.27,0.00018629,2]
[363331166,1748679042067,-185.94776078,0.00018629,2]
[363331167,1748679042078,-890.96,0.00018629,2]
[363331168,1748679042088,-430.0,0.00018629,2]
[363331169,1748679042098,-819.81,0.00018629,2]
[363331170,1748679042108,-2802.87,0.00018629,2]
[363331171,1748679042119,-968.67,0.00018629,2]
[363331172,1748679042129,-481.2875179,0.0001863,2]
[363331173,1748679042139,-430.0,0.0001863,2]
[363331174,1748679042148,-489.34539332,0.0001863,2]
[363331175,1748679042157,-584.55,0.0001863,2]
[363331176,1748679042167,-430.0,0.0001863,2]
[363331177,1748679042176,-430.0,0.0001863,2]
[363331178,1748679042186,-430.0,0.0001863,2]
[363331179,1748679042195,-430.0,0.0001863,2]
[363331180,1748679042205,-430.0,0.0001863,2]
[363331181,1748679042215,-430.0,0.0001863,2]
[363331182,1748679042226,-482.78,0.0001863,2]
[363331183,1748679042236,-430.0,0.0001863,2]
[363331184,1748679042245,-430.0,0.0001863,2]
[363331185,1748679042255,-1777.4,0.0001863,2]
[363331186,1748679042264,-430.0,0.0001863,2]
[363331187,1748679042274,-430.0,0.0001863,2]
[363331188,1748679042283,-1228.74,0.0001863,2]
[363331189,1748679042293,-1053.6,0.0001863,2]
[363331190,1748679042311,-430.0,0.0001863,2]
[363331191,1748679042323,-1564.91,0.0001863,2]
[363331192,1748679042334,-2601.47,0.0001863,2]
[363331193,1748679042345,-1723.15,0.0001863,2]
[363331194,1748679042355,-703.17,0.0001863,2]
[363331195,1748679042367,-549.63,0.0001863,2]
[363331196,1748679042377,-430.0,0.0001863,2]
[363331197,1748679042387,-430.0,0.0001863,2]
[363331198,1748679042399,-430.0,0.0001863,2]
[363331199,1748679042408,-430.0,0.0001863,2]
[363331200,1748679042419,-611.17,0.0001863,2]
[363331201,1748679042428,-943.81,0.0001863,2]
[363331202,1748679042439,-430.0,0.0001863,2]
[363331203,1748679042448,-430.0,0.0001863,2]
[363331204,1748679042457,-665.76,0.0001863,2]
[363331205,1748679042466,-766.35,0.0001863,2]
[363331206,1748679042476,-430.0,0.0001863,2]
[363331207,1748679042485,-450.97,0.0001863,2]
[363331208,1748679042495,-1196.33,0.0001863,2]
[363331209,1748679042503,-430.0,0.0001863,2]
[363331210,1748679042513,-430.0,0.0001863,2]
[363331211,1748679042522,-3551.36,0.0001863,2]
[363331212,1748679042531,-2168.9262107,0.00018666,2]
[363331213,1748679042540,-160.0,0.00018677,2]
[363331214,1748679042549,-314.84782018,0.00018678,2]
[363331215,1748679042559,-423.4608169,0.00018678,2]
[363331216,1748679042567,-12664.98044988,0.00018678,2]
[363331217,1748679042577,-229.3428821,0.00018678,2]
[363331218,1748679042586,-160.0,0.00018678,2]
[363331219,1748679042595,-160.0,0.00018678,2]
[363331220,1748679042604,-212.77096907,0.00018678,2]
[363331221,1748679042615,-160.0,0.00018678,2]
[363331222,1748679042623,-842.5625,0.00018678,2]
[363331223,1748679042632,-1500.0,0.00018712,2]
[363331224,1748679042642,-3061.8488444,0.00018831,2]
[363331225,1748679042652,-685.27,0.00018903,2]
[363331226,1748679042661,-890.96,0.00018903,2]
[363331227,1748679042670,-430.0,0.00018903,2]
[363331228,1748679042679,-819.81,0.00018903,2]
[363331229,1748679042688,-2802.87,0.00018903,2]
[363331230,1748679042697,-968.67,0.00018903,2]
[363331231,1748679042706,-430.0,0.00018904,2]
[363331232,1748679042715,-584.55,0.00018904,2]
[363331233,1748679042723,-430.0,0.00018904,2]
[363331234,1748679042732,-430.0,0.00018904,2]
[363331235,1748679042741,-430.0,0.00018904,2]
[363331236,1748679042750,-430.0,0.00018904,2]
[363331237,1748679042759,-430.0,0.00018904,2]
[363331238,1748679042767,-430.0,0.00018904,2]
[363331239,1748679042777,-482.78,0.00018904,2]
[363331240,1748679042786,-430.0,0.00018904,2]
[363331241,1748679042796,-430.0,0.00018904,2]
[363331242,1748679042805,-1777.4,0.00018904,2]
[363331243,1748679042814,-430.0,0.00018904,2]
[363331244,1748679042823,-430.0,0.00018904,2]
[363331245,1748679042832,-785.13436492,0.00018904,2]
[363331248,1748679042974,-443.60563508,0.00018904,2]
[363331249,1748679042983,-1053.6,0.00018904,2]
[363331250,1748679042992,-174.28,0.00018904,2]
[363331251,1748679043001,-1564.91,0.00018904,2]
[363331252,1748679043010,-2601.47,0.00018904,2]
[363331253,1748679043019,-1723.15,0.00018904,2]
[363331255,1748679043028,-703.17,0.00018904,2]
[363331256,1748679043036,-390.49246903,0.00018904,2]
[363331259,1748679043229,-430.0,0.00016438,2]
[363331260,1748679043239,-430.0,0.00016438,2]
[363331261,1748679043248,-430.0,0.00016712,2]
[363331262,1748679043257,-430.0,0.00016986,2]
[363331263,1748679043267,-472.93184677,0.0001726,2]
[363331264,1748679043276,-159.13753097,0.00018904,2]
[363331265,1748679043286,-430.0,0.00018904,2]
[363331266,1748679043295,-430.0,0.00018904,2]
[363331267,1748679043305,-430.0,0.00018904,2]
[363331268,1748679043314,-430.0,0.00018904,2]
[363331269,1748679043323,-137.2989802,0.00018904,2]
[363331270,1748679043335,-473.8710198,0.00018904,2]
[363331271,1748679043344,-4.44339496,0.00018904,2]
[363331272,1748679043356,-543.73900073,0.00018904,2]
[363331273,1748679043373,-395.62760431,0.00018904,2]
[363331274,1748679043386,-430.0,0.00018904,2]
[363331275,1748679043399,-665.76,0.00018904,2]
[363331276,1748679043408,-766.35,0.00018904,2]
[363331277,1748679043417,-205.98491207,0.00018904,2]
[363331278,1748679043428,-450.97,0.00018904,2]
[363331279,1748679043438,-1196.33,0.00018904,2]
[363331280,1748679043448,-359.64031325,0.00018904,2]
[363331281,1748679043457,-430.0,0.00018904,2]
[363331282,1748679043468,-3551.36,0.00018904,2]
[363331283,1748679043478,-3000.0,0.00019,2]
[363331284,1748679043488,-5230.716531,0.0001901,2]
[363331285,1748679043497,-3061.8488444,0.00019107,2]
[363331286,1748679043507,-160.0,0.00019177,2]
[363331287,1748679043516,-685.27,0.00019177,2]
[363331288,1748679043526,-890.96,0.00019177,2]
[363331289,1748679043535,-343.33315682,0.00019177,2]
[363331290,1748679043544,-819.81,0.00019177,2]
[363331291,1748679043554,-2802.87,0.00019177,2]
[363331292,1748679043563,-968.67,0.00019177,2]
[363331293,1748679043573,-430.0,0.00019178,2]
[363331294,1748679043582,-584.55,0.00019178,2]
[363331295,1748679043592,-430.0,0.00019178,2]
[363331296,1748679043601,-430.0,0.00019178,2]
[363331298,1748679043611,-430.0,0.00019178,2]
[363331299,1748679043622,-430.0,0.00019178,2]
[363331300,1748679043632,-430.0,0.00019178,2]
[363331301,1748679043642,-430.0,0.00019178,2]
[363331302,1748679043651,-430.0,0.00019178,2]
[363331303,1748679043661,-430.0,0.00019178,2]
[363331304,1748679043671,-430.0,0.00019178,2]
[363331305,1748679043680,-430.0,0.00019178,2]
[363331306,1748679043690,-482.78,0.00019178,2]
[363331307,1748679043700,-430.0,0.00019178,2]
[363331308,1748679043710,-430.0,0.00019178,2]
[363331310,1748679043719,-1777.4,0.00019178,2]
[363331312,1748679043729,-430.0,0.00019178,2]
[363331313,1748679043738,-430.0,0.00019178,2]
[363331315,1748679043747,-1184.74527517,0.00019178,2]
[363331316,1748679043785,-43.99472483,0.00019178,2]
[363331317,1748679043795,-1053.6,0.00019178,2]
[363331318,1748679043805,-1564.91,0.00019178,2]
[363331319,1748679043814,-1153.75664661,0.00019178,2]
[363331320,1748679043826,-1447.71335339,0.00019178,2]
[363331321,1748679043836,-1723.15,0.00019178,2]
[363331322,1748679043845,-703.17,0.00019178,2]
[363331323,1748679043856,-549.63,0.00019178,2]
[363331324,1748679043866,-500.0,0.00019178,2]
[363331325,1748679043875,-500.0,0.00019178,2]
[363331326,1748679043885,-500.0,0.00019178,2]
[363331327,1748679043896,-500.0,0.00019178,2]
[363331328,1748679044023,-500.0,0.00019178,2]
[363331329,1748679044033,-500.0,0.00019178,2]
[363331330,1748679044044,-500.0,0.00019178,2]
[363331331,1748679044054,-500.0,0.00019178,2]
[363331332,1748679044064,-500.0,0.00019178,2]
[363331333,1748679044073,-500.0,0.00019178,2]
[363331334,1748679044084,-500.0,0.00019178,2]
[363331335,1748679044095,-500.0,0.00019178,2]
[363331336,1748679044106,-500.0,0.00019178,2]
[363331337,1748679044117,-500.0,0.00019178,2]
[363331338,1748679044128,-500.0,0.00019178,2]
[363331339,1748679044138,-500.0,0.00019178,2]
[363331340,1748679044147,-500.0,0.00019178,2]
[363331341,1748679044157,-500.0,0.00019178,2]
[363331342,1748679044166,-500.0,0.00019178,2]
[363331343,1748679044175,-500.0,0.00019178,2]
[363331344,1748679044185,-500.0,0.00019178,2]
[363331345,1748679044195,-500.0,0.00019178,2]
[363331346,1748679044204,-500.0,0.00019178,2]
[363331347,1748679044215,-500.0,0.00019178,2]
[363331348,1748679044224,-500.0,0.00019178,2]
[363331349,1748679044234,-500.0,0.00019178,2]
[363331350,1748679044243,-500.0,0.00019178,2]
[363331351,1748679044252,-339.54734827,0.00019178,2]
[363331352,1748679044265,-160.45265173,0.00019178,2]
[363331353,1748679044274,-500.0,0.00019178,2]
[363331354,1748679044283,-500.0,0.00019178,2]
[363331355,1748679044293,-500.0,0.00019178,2]
[363331356,1748679044302,-500.0,0.00019178,2]
[363331357,1748679044312,-500.0,0.00019178,2]
[363331358,1748679044322,-500.0,0.00019178,2]
[363331359,1748679044331,-500.0,0.00019178,2]
[363331360,1748679044341,-500.0,0.00019178,2]
[363331361,1748679044351,-457.63921429,0.00019178,2]
[363331362,1748679044368,-500.0,0.00019178,2]
[363331363,1748679044378,-500.0,0.00019178,2]
[363331364,1748679044391,-500.0,0.00019178,2]
[363331365,1748679044402,-429.71539997,0.00019178,2]
[363331366,1748679044412,-500.0,0.00019178,2]
[363331367,1748679044424,-500.0,0.00019178,2]
[363331368,1748679044434,-500.0,0.00019178,2]
[363331369,1748679044443,-500.0,0.00019178,2]
[363331370,1748679044453,-500.0,0.00019178,2]
[363331371,1748679044464,-500.0,0.00019178,2]
[363331372,1748679044474,-500.0,0.00019178,2]
[363331373,1748679044484,-500.0,0.00019178,2]
[363331374,1748679044494,-500.0,0.00019178,2]
[363331375,1748679044503,-500.0,0.00019178,2]
[363331376,1748679044513,-500.0,0.00019178,2]
[363331377,1748679044522,-500.0,0.00019178,2]
[363331378,1748679044532,-500.0,0.00019178,2]
[363331379,1748679044541,-500.0,0.00019178,2]
[363331380,1748679044551,-500.0,0.00019178,2]
[363331381,1748679044560,-500.0,0.00019178,2]
[363331382,1748679044570,-450.0,0.00019178,2]
[363331383,1748679044580,-500.0,0.00019178,2]
[363331384,1748679044590,-500.0,0.00019178,2]
[363331385,1748679044599,-430.0,0.00019178,2]
[363331386,1748679044609,-163.72633696,0.00019178,2]
[363331387,1748679044620,-430.0,0.00019178,2]